Cogmind - Beta 12 @@@ ROGUE MODE // 2023.03.05 @ 16:00:59 Player: maxwell Result: Self-destructed Performance ------------- Evolutions (5) 2500 Regions Visited (18) 3600 Robots Destroyed (156) 780 Value Destroyed (5937) 5937 Prototype IDs (29) 580 Alien Tech Used (0) 0 Bonus (4158) 4158 TOTAL SCORE: 17555 Bonus ------- High Alert Combat Kills 713 Follower Combat Kills 1529 Entered Garrisons 1000 Used RIF Installer 2500 Aligned with FarCom 300 Friendly Fire -1884 Cogmind --------- Core Integrity 57/1000 Matter 244/300 Energy 48/100 System Corruption 7% Temperature Cool (0) Movement Core (100) Ox1 Location -5/Garrison Parts ------- > --- POWER (1) -------- (None) > --- PROPULSION (4) --- (None) > --- UTILITY (8) ------ Improved Kinecellerator Advanced Hacking Suite > --- WEAPON (4) ------- (None) > --- INVENTORY (5) ---- Huge Storage Unit Improved System Restoration Module PSU Rigger Long-range Proton Cannon Improved Remote Datajack Peak State ------------ > --- POWER ------------ Improved Deuterium Engine > --- PROPULSION ------- Heavy Treads Heavy Treads > --- UTILITY ---------- High-capacity Storage Unit Relay Coupler [NC] Relay Coupler [Swarmer] Relay Coupler [Grunt] Relay Coupler [Sentry] Relay Coupler [Hunter] Relay Coupler [Behemoth] > --- WEAPON ----------- Hypervelocity Coil Gun Hypervelocity Coil Gun Improved Remote Datajack > --- INVENTORY -------- Hybrid Deuterium Engine Antimatter Reactor Heavy Treads Improved Cooling System Huge Storage Unit Active Sensor Spoofer Improved Light Armor Plating Relay Coupler [Sentry] Relay Coupler [Specialist] Relay Coupler [Specialist] PSU Rigger Heavy Battle Rifle Heavy Battle Rifle Advanced EMP Blaster Improved Remote Datajack Heavy Hammer [Rating: 77] Favorites ----------- Power Improved Ion Engine Engine Improved Ion Engine Power Core Light Nuclear Core Reactor Antimatter Reactor Propulsion Advanced Treads Treads Advanced Treads Leg Carbon-fiber Leg Wheel Compact Wheel Hover Unit Backup Propulsion III Utility High-capacity Storage Unit Device Structural Scanner Storage High-capacity Storage Unit Processor Advanced Targeting Computer Hackware Relay Coupler [Grunt] Protection Reflective Plating Weapon Light Assault Rifle Energy Gun Backup Laser III Ballistic Gun Light Assault Rifle Launcher Advanced EMP Blaster Special Weapon Remote Datajack Impact Weapon Heavy Hammer Slashing Weapon Ripper Special Melee Weapon Datajack Build | -11 -10 -10 -9 -9 -9 -8 -8 -8 -8 -8 -7 -7 -7 -7 -6 -6 -5 -5 ------- Run | Jun Mat Min Mat Min Exi Min Mat Gar Mat Gar Fac Was Fac Gar Fac Gar Fac Gar Slots Evolved 10 | . . . 2 . . . 2 . . . 2 . . . 2 . 2 . Power . | . . . . . . . . . . . . . . . . . . . Propulsion 2 | . . . . . . . 1 . . . . . . . 1 . . . Utility 6 | . . . 1 . . . 1 . . . 2 . . . 1 . 1 . Weapon 2 | . . . 1 . . . . . . . . . . . . . 1 . Parts Attached 178 | 6 13 6 19 3 2 4 4 4 16 13 2 16 1 25 5 25 13 1 Power 13 | 1 1 . 2 1 . . 1 . 1 . . 1 . 1 . 3 1 . Engine 10 | 1 1 . 1 1 . . 1 . 1 . . . . 1 . 2 1 . Core 1 | . . . 1 . . . . . . . . . . . . . . . Reactor 2 | . . . . . . . . . . . . 1 . . . 1 . . Propulsion 31 | 2 5 . 5 . 1 . 1 . 3 1 . 3 1 1 1 3 4 . Treads 27 | 2 5 . 3 . 1 . 1 . 3 1 . 2 1 1 1 3 3 . Leg 1 | . . . . . . . . . . . . 1 . . . . . . Wheel 2 | . . . 2 . . . . . . . . . . . . . . . Hover 1 | . . . . . . . . . . . . . . . . . 1 . Flight . | . . . . . . . . . . . . . . . . . . . Utility 54 | 1 5 1 7 . 1 2 2 1 4 3 2 5 . 9 4 1 5 1 Device 23 | . . . 3 . . . 1 1 3 3 1 3 . 2 3 . 2 1 Storage 5 | 1 1 . . . 1 . 1 . . . . 1 . . . . . . Processor 2 | . . . . . . . . . . . 1 . . . . . 1 . Hackware 9 | . . . . . . . . . . . . . . 6 1 1 1 . Protection 15 | . 4 1 4 . . 2 . . 1 . . 1 . 1 . . 1 . Artifact . | . . . . . . . . . . . . . . . . . . . Weapon 80 | 2 2 5 5 2 . 2 . 3 8 9 . 7 . 14 . 18 3 . Energy Gun 1 | 1 . . . . . . . . . . . . . . . . . . Energy Cannon . | . . . . . . . . . . . . . . . . . . . Ballistic Gun 46 | 1 2 3 5 2 . 2 . 1 5 5 . 7 . 5 . 6 2 . Ballistic Cannon . | . . . . . . . . . . . . . . . . . . . Launcher 9 | . . . . . . . . 1 2 2 . . . 3 . 1 . . Special Weapon 6 | . . . . . . . . . . . . . . 1 . 5 . . Impact Weapon 9 | . . . . . . . . . . . . . . 2 . 6 1 . Slashing Weapon 7 | . . 2 . . . . . 1 1 2 . . . 1 . . . . Piercing Weapon . | . . . . . . . . . . . . . . . . . . . Special Melee Weapon 2 | . . . . . . . . . . . . . . 2 . . . . Unidentified Prototypes 4 | . . . 1 . . . . . 2 . . . . . 1 . . . Corrupted Parts 2 | . . . . . . . . . . . . . . 1 . . 1 . System Corruption 5 | . . . . . . . . . . . . . . 4 . . 1 . Parts Lost 51 | . 4 3 9 . . 4 . . . 2 . 7 . . . 7 15 . Power 6 | . 1 . 2 . . . . . . . . . . . . 2 1 . Propulsion 14 | . 1 1 1 . . . . . . 1 . 3 . . . 2 5 . Utility 16 | . 2 1 3 . . 2 . . . 1 . 2 . . . . 5 . Weapon 15 | . . 1 3 . . 2 . . . . . 2 . . . 3 4 . Highest Loss Streak 8 | . 2 1 3 . . 3 . . . 1 . 5 . . . 3 8 . To Critical Strikes 2 | . . . . . . . . . . 1 . 1 . . . . . . Average Slot Usage (%) 89 | . 97 95 92 89 100 99 100 99 99 96 100 58 69 79 86 83 75 7 Engine 8 | . 13 14 9 11 11 11 9 9 9 9 7 5 7 6 6 5 . . Treads 19 | . 26 24 12 22 22 22 27 27 27 27 23 7 12 15 13 12 15 . Device 7 | . . . 8 11 11 11 18 18 17 16 23 5 7 3 3 . 3 2 Storage 9 | . 14 14 11 11 11 11 9 9 9 9 7 5 7 7 6 6 4 . Hackware 7 | . . . . . . . . . . . . . . 13 29 37 24 5 Protection 8 | . 13 14 10 11 11 10 9 9 9 9 7 7 7 7 6 . 3 . Ballistic Gun 21 | . 24 21 30 23 33 33 27 18 23 20 23 11 23 16 13 12 8 . Slashing Weapon 1 | . . 5 . . . . . 6 2 2 . . . . . . . . Naked Turns 139 | . . . . . . . . . . . . 55 . . . . 84 . Heaviest Build 111 | 11 31 32 37 37 55 59 60 64 69 69 70 101 101 111 68 70 77 5 Greatest Support 140 | 40 40 40 44 44 44 44 66 66 66 64 64 70 90 93 140 140 110 3 Greatest Overweight (x) 6 | . 1 1 1 . 1 1 . . 1 1 1 6 1 1 . . 1 1 Average Overweight (x) . | . . . . . . 1 . . . . 1 . 1 . . . . . Largest Inventory Capacity 25 | 8 15 15 15 15 20 20 25 20 20 20 20 20 20 20 20 20 20 5 Average Capacity 18 | 6 14 15 15 15 16 20 20 20 20 20 20 15 20 20 20 20 18 5 Most Carried 20 | 4 10 14 15 15 15 18 18 20 20 20 17 20 20 20 20 17 16 5 Average Carried 15 | 1 7 11 13 15 14 15 16 18 19 18 16 13 18 19 16 14 12 5 Final Capacity 20 | 8 15 15 15 15 20 20 20 20 20 20 20 20 20 20 20 20 5 5 Final Carried 20 | 4 9 14 15 15 15 18 18 19 19 18 16 18 20 20 16 14 5 5 Class Distribution -------------------- 33% | Mutant 14% | Skirmisher 13% | Botlord-Mutant 10% | Tank 7% | Scavenger-Skirmisher 6% | Bothacker-Mutant 5% | Scavenger-Tank 4% | Scavenger-Mutant Dominant Class ---------------- Mutant | -10/Materials Mutant | -10/Mines Tank | -9/Materials Mutant | -9/Mines Tank | -9/Exiles Skirmisher | -8/Mines Scavenger-Skirmisher | -8/Materials Mutant | -8/Garrison Scavenger-Tank | -8/Materials Mutant | -8/Garrison Scavenger-Tank | -7/Factory Mutant | -7/Waste Scavenger-Skirmisher | -7/Factory Scavenger-Mutant | -7/Garrison Botlord-Mutant | -6/Factory Botlord-Mutant | -6/Garrison Botlord-Mutant | -5/Factory Mutant | -5/Garrison Resources | -11 -10 -10 -9 -9 -9 -8 -8 -8 -8 -8 -7 -7 -7 -7 -6 -6 -5 -5 ----------- Run | Jun Mat Min Mat Min Exi Min Mat Gar Mat Gar Fac Was Fac Gar Fac Gar Fac Gar Matter Collected 4791 | 140 442 133 416 119 . 175 52 160 621 426 . 395 68 537 239 738 130 . Remotely . | . . . . . . . . . . . . . . . . . . . Salvage Created 6337 | . 520 445 621 259 . 250 52 197 797 566 . 307 112 1043 198 807 163 . Parts 384 | . 40 24 45 37 . 15 5 8 52 31 . 9 6 45 14 45 8 . Haulers Intercepted 2 | . 1 . . . . . . . 1 . . . . . . . . . Recyclers Shooed 2 | . 1 . . . . . . . 1 . . . . . . . . . Parts Field Recycled . | . . . . . . . . . . . . . . . . . . . Retrieved Matter . | . . . . . . . . . . . . . . . . . . . Parts Self-Destructed . | . . . . . . . . . . . . . . . . . . . Prevented . | . . . . . . . . . . . . . . . . . . . Kills | -11 -10 -10 -9 -9 -9 -8 -8 -8 -8 -8 -7 -7 -7 -7 -6 -6 -5 -5 ------- Run | Jun Mat Min Mat Min Exi Min Mat Gar Mat Gar Fac Was Fac Gar Fac Gar Fac Gar Combat Hostiles Destroyed 128 | . 13 12 13 14 . 5 1 5 14 11 . 1 1 21 . 13 4 . Melee 14 | . . 7 . . . . . 2 4 . . . . . . . 1 . Guns 93 | . 13 5 13 14 . 5 1 1 10 7 . 1 1 8 . 11 3 . AOE 17 | . . . . . . . . 2 . 4 . . . 11 . . . . Classes Destroyed 19 | . 6 2 1 1 . 2 . . 1 1 . 2 . 1 1 1 . . Worker 7 | . 2 . 1 1 . . . . 2 . . . . . 1 . . . Builder 3 | . . . . 1 . . . . 2 . . . . . . . . . Tunneler 1 | . . . . . . 1 . . . . . . . . . . . . Hauler 2 | . 1 . . . . . . . 1 . . . . . . . . . Recycler 2 | . . 1 . . . . . . . . . . 1 . . . . . Mechanic 1 | . 1 . . . . . . . . . . . . . . . . . Watcher 7 | . 1 . 3 . . . . . 1 . . . . . 1 1 . . Swarmer 36 | . 6 6 3 14 . . . . 3 . . . . 4 . . . . Cutter 2 | . . . . . . . . . . . . . . . . 2 . . Grunt 51 | . 7 5 6 . . 3 . 3 4 8 . . . 11 . 4 . . Brawler 1 | . . . . . . . . . 1 . . . . . . . . . Duelist 2 | . . . . . . . . . . . . . . 1 . 1 . . Sentry 15 | . . . 4 . . . 1 1 3 . . . . 2 . 4 . . Hunter 11 | . . . . . . 2 . 1 3 1 . . . 2 . . 2 . Programmer 8 | . . . . . . . . . . 2 . . 1 1 . 2 2 . Compactor 1 | . . . . . . . . . . . . 1 . . . . . . Assembled 1 | . . 1 . . . . . . . . . . . . . . . . Thug 2 | . . 1 . . . . . . . . . . . . . 1 . . Martyr 2 | . . . . . . . . . . . . 2 . . . . . . Infiltrator 2 | . . . . . . . . . . . . . . . 2 . . . Best Kill Streak 9 | . 3 3 3 6 . 3 1 3 5 3 . 1 1 9 1 4 2 . Combat Bots Only 9 | . 3 3 3 5 . 3 1 3 4 3 . 1 1 9 . 3 2 . Max Kills in Single Turn 6 | . 1 1 1 1 . 1 1 2 2 1 . 1 1 6 1 1 1 . Gunslinging 1 | . . . . . . . . . 1 . . . . . . . . . Exploded 6 | . . . . . . . . 2 . 1 . . . 6 . . . . Melee 1 | . . 1 . . . . . 1 1 . . . . . . . 1 . Uniques/NPCs Destroyed . | . . . . . . . . . . . . . . . . . . . Combat | -11 -10 -10 -9 -9 -9 -8 -8 -8 -8 -8 -7 -7 -7 -7 -6 -6 -5 -5 -------- Run | Jun Mat Min Mat Min Exi Min Mat Gar Mat Gar Fac Was Fac Gar Fac Gar Fac Gar Damage Taken 10814 | . 721 647 839 350 . 792 38 90 676 413 . 298 412 754 103 2359 2116 206 Core 1906 | . 106 107 111 29 . 100 . 9 55 46 . 152 . 15 . 233 761 182 Absorbed by Shields 410 | . . . 21 . . . . 33 260 64 . 12 . 20 . . . . Reduced by Siege Mode 104 | . . . . . . . . . . . . . . . . 104 . . Regen/Repaired (Parts) 152 | . 131 . . . . . . . . . . 4 17 . . . . . Core Remaining (%) 63 | 100 . 14 . . . 40 . . . 80 . . . 76 . 72 . . Volleys Fired 462 | . 67 17 53 25 . 31 7 4 38 28 . 35 3 43 35 59 17 . Largest 3 | . 2 2 3 2 . 3 3 2 3 3 . 3 3 3 2 3 2 . Hottest 103 | . 70 40 63 43 . 68 68 48 81 84 . 84 99 99 68 103 56 . Shots Fired 991 | . 133 34 157 50 . 92 21 5 115 65 . 84 9 70 36 98 22 . Gun 923 | . 133 34 157 50 . 92 21 3 115 59 . 84 9 45 26 73 22 . Cannon . | . . . . . . . . . . . . . . . . . . . Launcher 26 | . . . . . . . . 2 . 6 . . . 16 . 2 . . Special 42 | . . . . . . . . . . . . . . 9 10 23 . . Kinetic 855 | . 103 34 157 50 . 92 21 3 115 59 . 46 9 45 26 73 22 . Thermal 68 | . 30 . . . . . . . . . . 38 . . . . . . Explosive 2 | . . . . . . . . 2 . . . . . . . . . . Electromagnetic 24 | . . . . . . . . . . 6 . . . 16 . 2 . . Robot Hit Streak 25 | . 10 12 13 12 . 9 16 5 10 14 . 17 2 8 11 22 25 . Robot Miss Streak 7 | . 4 3 6 4 . 2 4 . 4 2 . 2 3 2 1 5 7 . Penetration Max 1 | . . . . . . . . . . . . . . . 1 1 . . Secondary Targets 15 | . . 1 5 3 . 2 . . 1 . . . . 1 . 2 . . Max Gunslinging Chain 1 | . . 1 1 1 . 1 . . 1 . . . . 1 . 1 . . Shots Hit Robots 694 | . 79 40 93 27 . 62 12 8 86 41 . 67 3 55 30 70 21 . Core Hits 304 | . 32 18 31 18 . 21 5 8 34 24 . 16 2 37 10 25 23 . Critical Kills 10 | . 1 . . 1 . . . . . . . . . 1 . 7 . . Critical Parts Destroyed 18 | . . 1 . . . . 1 . . 1 . . 1 . . 13 1 . Critical Strikes 34 | . 2 3 . 1 . . 1 . 1 1 . 1 1 1 . 21 1 . Burn 1 | . 1 . . . . . . . . . . . . . . . . . Destroy 27 | . 1 1 . 1 . . 1 . . 1 . 1 1 1 . 19 . . Smash 3 | . . . . . . . . . . . . . . . . 2 1 . Sever 3 | . . 2 . . . . . . 1 . . . . . . . . . Melee Attacks 123 | . . 33 . . . . . 4 12 19 . . . 19 . 27 9 . Impact 41 | . . . . . . . . . . . . . . 5 . 27 9 . Slashing 68 | . . 33 . . . . . 4 12 19 . . . . . . . . Piercing . | . . . . . . . . . . . . . . . . . . . Sneak Attacks 18 | . . 2 . . . . . . 2 . . . . 14 . . . . Combat Hostiles . | . . . . . . . . . . . . . . . . . . . Follow-up Attacks . | . . . . . . . . . . . . . . . . . . . Damage Inflicted 12353 | . 939 911 903 382 . 534 134 438 1680 1141 . 1192 77 1818 624 1048 532 . Guns 8321 | . 833 253 892 354 . 511 134 51 1178 694 . 1192 77 564 624 546 418 . Cannons . | . . . . . . . . . . . . . . . . . . . Explosions 2289 | . 85 . . . . . . 286 45 326 . . . 1254 . 293 . . Melee 1634 | . . 655 . . . . . 101 434 121 . . . . . 209 114 . Ramming 109 | . 21 3 11 28 . 23 . . 23 . . . . . . . . . Kinetic 7656 | . 582 253 892 354 . 511 134 51 1178 694 . 778 77 564 624 546 418 . Thermal 939 | . 336 . . . . . . . . 51 . 414 . 138 . . . . Explosive 286 | . . . . . . . . 286 . . . . . . . . . . Electromagnetic 1729 | . . . . . . . . . 45 275 . . . 1116 . 293 . . Impact 323 | . . . . . . . . . . . . . . . . 209 114 . Slashing 1311 | . . 655 . . . . . 101 434 121 . . . . . . . . Piercing . | . . . . . . . . . . . . . . . . . . . Highest Corruption 7 | . 2 2 . . . . 4 4 4 7 . . . 4 . 1 7 7 Average Corruption 3 | . 2 2 . . . . 3 4 4 4 . . . 4 . 1 3 7 Corruption Purged . | . . . . . . . . . . . . . . . . . . . Corruption Blocked . | . . . . . . . . . . . . . . . . . . . Effects 170 | . 20 14 . . . . 9 8 39 33 . . . 34 . 8 4 1 Message Errors 42 | . 1 5 . . . . . 1 9 13 . . . 8 . 4 1 . Matter Fused 48 | . 8 1 . . . . 3 5 11 9 . . . 7 . 2 1 1 Heat Flow Errors 14 | . 1 3 . . . . 1 1 3 2 . . . 2 . 1 . . Energy Discharges 19 | . 4 3 . . . . 2 . 3 2 . . . 3 . 1 1 . Parts Rejected 1 | . . . . . . . . 1 . . . . . . . . . . Parts Fused 1 | . . . . . . . . . . . . . . 1 . . . . Data Loss (minor) 21 | . 2 1 . . . . 2 . 5 3 . . . 8 . . . . Data Loss (major) 13 | . 2 1 . . . . . . 4 2 . . . 3 . . 1 . Misfires 3 | . 1 . . . . . . . 2 . . . . . . . . . Alerts 6 | . 1 . . . . . 1 . 1 1 . . . 2 . . . . Weapon Failures 2 | . . . . . . . . . 1 1 . . . . . . . . Overload Shots . | . . . . . . . . . . . . . . . . . . . Overflow Damage 302 | . 46 37 . . . . . 39 48 40 . . . 15 . 32 45 . Projectiles . | . . . . . . . . . . . . . . . . . . . Explosions 100 | . 46 . . . . . . 39 . . . . . 15 . . . . Melee 202 | . . 37 . . . . . . 48 40 . . . . . 32 45 . Knockbacks . | . . . . . . . . . . . . . . . . . . . Impact . | . . . . . . . . . . . . . . . . . . . Kinetic . | . . . . . . . . . . . . . . . . . . . Secondary . | . . . . . . . . . . . . . . . . . . . Self-Inflicted Damage 118 | . 98 . . . . . . . . 9 . . . 1 . 10 . . Shots 4 | . 1 . . . . . . . . 1 . . . 1 . 1 . . Rammed 16 | . 7 1 1 4 . 2 . . 1 . . . . . . . . . Targets Rammed 18 | . 7 1 1 4 . 3 . . 2 . . . . . . . . . Kicked . | . . . . . . . . . . . . . . . . . . . Crushed 2 | . . . . . . 1 . . 1 . . . . . . . . . Highest Temperature 325 | . 325 283 122 8 . 218 85 97 155 230 . . 22 243 . 132 . . Average Temperature 63 | . 83 75 35 3 . 83 45 56 72 107 . . 22 71 . 21 . . Received Heat Transfer 2267 | . 255 243 331 . . 324 18 24 132 85 . . . 198 . 594 36 27 Effects 3 | . 3 . . . . . . . . . . . . . . . . . Energy Bleed 1 | . 1 . . . . . . . . . . . . . . . . . Interference 2 | . 2 . . . . . . . . . . . . . . . . . Siege Activations 1 | . . . . . . . . . . . . . . . . 1 . . Total Turns 31 | . . . . . . . . . . . . . . . . 31 . . Longest Duration 31 | . . . . . . . . . . . . . . . . 31 . . Robots Corrupted 3 | . . . . . . . . . . . . . . 2 . 1 . . Combat Hostiles 3 | . . . . . . . . . . . . . . 2 . 1 . . Parts Fried 11 | . . . . . . . . . . . . . . 8 . 2 1 . Impact Corruptions 3 | . . . . . . . . . . . . . . . . 2 1 . Robots Melted . | . . . . . . . . . . . . . . . . . . . Combat Hostiles . | . . . . . . . . . . . . . . . . . . . Parts Melted 5 | . 2 . . . . . . . . . . . . 2 . 1 . . Heat Transferred 2248 | . 864 . . . . . . . . 50 . 1184 . 150 . . . . Parts Sabotaged . | . . . . . . . . . . . . . . . . . . . Parts Stolen . | . . . . . . . . . . . . . . . . . . . Parts Stripped . | . . . . . . . . . . . . . . . . . . . Power Chain Reactions 4 | . . . . . . . . . . 1 . . . 3 . . . . Missiles Intercepted . | . . . . . . . . . . . . . . . . . . . Alert | -11 -10 -10 -9 -9 -9 -8 -8 -8 -8 -8 -7 -7 -7 -7 -6 -6 -5 -5 ------- Run | Jun Mat Min Mat Min Exi Min Mat Gar Mat Gar Fac Was Fac Gar Fac Gar Fac Gar Peak Influence 1463 | . 236 76 273 327 . 45 70 212 299 447 234 81 253 1446 763 1463 779 341 Initial 767 | . . 21 . 37 . . . 47 103 39 234 81 . 177 758 492 767 341 Average 321 | . 93 39 153 198 . 11 40 146 134 244 234 17 137 765 631 1030 638 341 Maximum Alert Level 4 | . 1 . 1 1 . . . 1 1 2 1 . 1 4 3 4 3 1 Low Security (%) 55 | 100 90 100 64 59 . 100 100 81 81 29 . 100 56 . . . . . Level 1 16 | . 9 . 35 40 . . . 18 18 49 100 . 43 32 . . 5 100 Level 2 7 | . . . . . . . . . . 20 . . . 6 59 12 49 . Level 3 12 | . . . . . . . . . . . . . . 42 40 44 44 . Level 4 6 | . . . . . . . . . . . . . . 18 . 43 . . Level 5 . | . . . . . . . . . . . . . . . . . . . High Security . | . . . . . . . . . . . . . . . . . . . Max Security . | . . . . . . . . . . . . . . . . . . . Squads Dispatched 17 | . 3 . 3 . . . . . 3 . . . 1 . 2 . 5 . Investigation 4 | . 1 . 1 . . . . . 1 . . . . . . . 1 . Extermination 1 | . . . . . . . . . . . . . . . . . 1 . Reinforcement 9 | . 2 . 2 . . . . . 2 . . . . . . . 3 . Assault 1 | . . . . . . . . . . . . . . . 1 . . . Garrison 2 | . . . . . . . . . . . . . 1 . 1 . . . Intercept . | . . . . . . . . . . . . . . . . . . . Searches Triggered . | . . . . . . . . . . . . . . . . . . . Construction Impeded 2 | . . . . . . . . . 1 . . . . . . . 1 . Haulers Reinforced . | . . . . . . . . . . . . . . . . . . . Active Scanning Responses . | . . . . . . . . . . . . . . . . . . . Cargo Convoy Interrupts . | . . . . . . . . . . . . . . . . . . . Stealth | -11 -10 -10 -9 -9 -9 -8 -8 -8 -8 -8 -7 -7 -7 -7 -6 -6 -5 -5 --------- Run | Jun Mat Min Mat Min Exi Min Mat Gar Mat Gar Fac Was Fac Gar Fac Gar Fac Gar Distress Signals 12 | . . . 1 . . . . . 4 . . . . 1 1 4 1 . Communications Jammed . | . . . . . . . . . . . . . . . . . . . Distress Signals . | . . . . . . . . . . . . . . . . . . . Times Spotted 236 | . 26 14 21 16 . 5 3 5 27 10 . 5 8 34 9 36 14 3 Peak Tracking Total 9 | . 3 3 5 4 . 3 1 3 6 2 . 3 4 8 5 7 5 9 Tactical Retreats 12 | . 1 1 . 1 . . . . . 1 . . . 4 . 2 2 . Traps | -11 -10 -10 -9 -9 -9 -8 -8 -8 -8 -8 -7 -7 -7 -7 -6 -6 -5 -5 ------- Run | Jun Mat Min Mat Min Exi Min Mat Gar Mat Gar Fac Was Fac Gar Fac Gar Fac Gar Traps Triggered 25 | . 5 . 1 . . . 2 . 1 9 1 . . 3 . 1 1 1 Indirectly 1 | . . . . . . . . . . 1 . . . . . . . . Trap Hack Attempts . | . . . . . . . . . . . . . . . . . . . Triggered . | . . . . . . . . . . . . . . . . . . . Disarmed . | . . . . . . . . . . . . . . . . . . . Reprogrammed . | . . . . . . . . . . . . . . . . . . . Reused . | . . . . . . . . . . . . . . . . . . . Traps Extracted . | . . . . . . . . . . . . . . . . . . . Installed . | . . . . . . . . . . . . . . . . . . . Triggered . | . . . . . . . . . . . . . . . . . . . Machines | -11 -10 -10 -9 -9 -9 -8 -8 -8 -8 -8 -7 -7 -7 -7 -6 -6 -5 -5 ---------- Run | Jun Mat Min Mat Min Exi Min Mat Gar Mat Gar Fac Was Fac Gar Fac Gar Fac Gar Machines Disabled 19 | . 2 . . . . . . . 4 3 . . 3 4 1 2 . . Max in Single Turn 2 | . 2 . . . . . . . 2 1 . . 1 1 . 1 . . Garrison Access 1 | . . . . . . . . . . . . . . . 1 . . . Garrison Relay 4 | . . . . . . . . . . . . . . 3 . 1 . . Machines Repaired . | . . . . . . . . . . . . . . . . . . . Machines Sabotaged . | . . . . . . . . . . . . . . . . . . . Overloaded Fab Kills . | . . . . . . . . . . . . . . . . . . . Hacking | -11 -10 -10 -9 -9 -9 -8 -8 -8 -8 -8 -7 -7 -7 -7 -6 -6 -5 -5 --------- Run | Jun Mat Min Mat Min Exi Min Mat Gar Mat Gar Fac Was Fac Gar Fac Gar Fac Gar Machines Accessed 32 | . 3 . 2 . 2 . 6 . 8 1 . . 1 1 2 3 3 . Terminals 22 | . 2 . 2 . . . 5 . 6 1 . . . 1 1 3 1 . Fabricators . | . . . . . . . . . . . . . . . . . . . Repair Stations 2 | . 1 . . . . . . . 1 . . . . . . . . . Recycling Units 1 | . . . . . . . . . . . . . . . . . 1 . Scanalyzers . | . . . . . . . . . . . . . . . . . . . Garrison Access 5 | . . . . . . . 1 . 1 . . . 1 . 1 . 1 . Total Hacks 77 | . 12 . 8 . 2 . 15 . 23 2 . . 2 1 4 3 5 . Successful 39 | . 6 . 2 . 2 . 6 . 14 . . . 1 . 2 2 4 . Failed 37 | . 5 . 6 . . . 9 . 9 2 . . 1 1 2 1 1 . Catastrophic 6 | . 1 . 1 . . . . . 1 . . . 1 1 . 1 . . Database Lockouts 1 | . 1 . . . . . . . . . . . . . . . . . Manual 52 | . 5 . 8 . 1 . 12 . 19 . . . 1 . 3 . 3 . Terminals 58 | . 5 . 8 . . . 14 . 20 2 . . . 1 3 3 2 . Fabricators . | . . . . . . . . . . . . . . . . . . . Repair Stations 9 | . 7 . . . . . . . 2 . . . . . . . . . Recycling Units 1 | . . . . . . . . . . . . . . . . . 1 . Scanalyzers . | . . . . . . . . . . . . . . . . . . . Garrison Access 7 | . . . . . . . 1 . 1 . . . 2 . 1 . 2 . Terminal Hacks 13 | . 1 . 1 . 2 . 2 . 5 . . . . . . 2 . . Record 1 | . . . . . 1 . . . . . . . . . . . . . Robot Analysis 4 | . 1 . 1 . . . . . 2 . . . . . . . . . Prototype ID Bank 1 | . . . . . . . 1 . . . . . . . . . . . Open Door 1 | . . . . . . . . . . . . . . . . 1 . . Terminal Index 2 | . . . . . . . 1 . 1 . . . . . . . . . Unreport Threat 1 | . . . . . . . . . 1 . . . . . . . . . Locate Traps 1 | . . . . . . . . . 1 . . . . . . . . . Patrol Navigation 1 | . . . . . . . . . . . . . . . . 1 . . EX-Prototype ID Bank 1 | . . . . . 1 . . . . . . . . . . . . . Fabricator Hacks . | . . . . . . . . . . . . . . . . . . . Repair Station Hacks 5 | . 4 . . . . . . . 1 . . . . . . . . . Scan Component 3 | . 2 . . . . . . . 1 . . . . . . . . . Repair 2 | . 2 . . . . . . . . . . . . . . . . . Recycling Unit Hacks 1 | . . . . . . . . . . . . . . . . . 1 . Retrieve Components 1 | . . . . . . . . . . . . . . . . . 1 . Scanalyzer . | . . . . . . . . . . . . . . . . . . . Garrison Access Hacks 5 | . . . . . . . 1 . 1 . . . 1 . 1 . 1 . Unlock Access 5 | . . . . . . . 1 . 1 . . . 1 . 1 . 1 . Unauthorized Hacks 15 | . 1 . 1 . . . 3 . 7 . . . . . 1 . 2 . Terminals 14 | . 1 . 1 . . . 3 . 7 . . . . . 1 . 1 . Assimilate 1 | . . . . . . . . . 1 . . . . . . . . . Botnet 8 | . . . . . . . 2 . 5 . . . . . 1 . . . Operators 5 | . 1 . 1 . . . 1 . 1 . . . . . . . 1 . Fabricators . | . . . . . . . . . . . . . . . . . . . Repair Stations . | . . . . . . . . . . . . . . . . . . . Recycling Units . | . . . . . . . . . . . . . . . . . . . Scanalyzers . | . . . . . . . . . . . . . . . . . . . Garrison Access 1 | . . . . . . . . . . . . . . . . . 1 . Eject 1 | . . . . . . . . . . . . . . . . . 1 . Data Cores Recovered 1 | . . . . . . . . . . . . . . . 1 . . . Used 1 | . . . . . . . . . . . . . . . 1 . . . Hacking Detections 25 | . 3 . 2 . . . 5 . 7 1 . . 1 1 2 2 1 . Full Trace Events . | . . . . . . . . . . . . . . . . . . . Feedback Events . | . . . . . . . . . . . . . . . . . . . Feedback Blocked . | . . . . . . . . . . . . . . . . . . . Robot Schematics Acquired . | . . . . . . . . . . . . . . . . . . . Robots Built . | . . . . . . . . . . . . . . . . . . . Authchips . | . . . . . . . . . . . . . . . . . . . Time . | . . . . . . . . . . . . . . . . . . . Total Robot Build Rating . | . . . . . . . . . . . . . . . . . . . Part Schematics Acquired . | . . . . . . . . . . . . . . . . . . . Parts Built . | . . . . . . . . . . . . . . . . . . . Authchips . | . . . . . . . . . . . . . . . . . . . Time . | . . . . . . . . . . . . . . . . . . . Total Part Build Rating . | . . . . . . . . . . . . . . . . . . . Parts Repaired 2 | . 2 . . . . . . . . . . . . . . . . . Time 52 | . 52 . . . . . . . . . . . . . . . . . Parts Recycled . | . . . . . . . . . . . . . . . . . . . Recycled Matter . | . . . . . . . . . . . . . . . . . . . Retrieved Matter . | . . . . . . . . . . . . . . . . . . . Retrieved Components 4 | . . . . . . . . . . . . . . . . . 4 . Parts Scanalyzed . | . . . . . . . . . . . . . . . . . . . Part Schematics Acquired . | . . . . . . . . . . . . . . . . . . . Parts Damaged . | . . . . . . . . . . . . . . . . . . . Bothacking | -11 -10 -10 -9 -9 -9 -8 -8 -8 -8 -8 -7 -7 -7 -7 -6 -6 -5 -5 ------------ Run | Jun Mat Min Mat Min Exi Min Mat Gar Mat Gar Fac Was Fac Gar Fac Gar Fac Gar Used RIF Installer 5 | . . . . . . . . 1 . 2 . . . 1 . 1 . . Hotswap 1 | . . . . . . . . . . 1 . . . . . . . . Command Fork 1 | . . . . . . . . . . . . . . 1 . . . . Watcher Feeds 1 | . . . . . . . . . . 1 . . . . . . . . Structural Interface 1 | . . . . . . . . . . . . . . . . 1 . . Robots Hacked 24 | . . . . . . . . . . . . . . 8 7 9 . . Non-combat 5 | . . . . . . . . . . . . . . 1 4 . . . Combat 19 | . . . . . . . . . . . . . . 7 3 9 . . Robot Hacks Applied 26 | . . . . . . . . . . . . . . 8 9 9 . . no_distress 1 | . . . . . . . . . . . . . . . 1 . . . deconstruct_bot 1 | . . . . . . . . . . . . . . . 1 . . . purge_threat 2 | . . . . . . . . . . . . . . . 2 . . . block_reporting 1 | . . . . . . . . . . . . . . . 1 . . . map_route 1 | . . . . . . . . . . . . . . . 1 . . . scatter_targeting 1 | . . . . . . . . . . . . . . 1 . . . . disable_weapons 1 | . . . . . . . . . . . . . . . . 1 . . overwrite_iff 2 | . . . . . . . . . . . . . . . . 2 . . streamctrl_high 1 | . . . . . . . . . . . . . . 1 . . . . formatsys_high 15 | . . . . . . . . . . . . . . 6 3 6 . . Relay Couplers Released 24 | . . . . . . . . . . . . . . 15 3 3 3 . Ejected 3 | . . . . . . . . . . . . . . . . . 3 . Machine Destruction 17 | . . . . . . . . . . . . . . 11 3 3 . . Programmers 4 | . . . . . . . . . . . . . . 4 . . . . Attached 8 | . . . . . . . . . . . . . . 6 1 1 . . Fabnet Peak Effective % . | . . . . . . . . . . . . . . . . . . . Robots Rewired 22 | . . . . . . . . 6 . . . . . 7 . 9 . . Allies Hacked . | . . . . . . . . . . . . . . . . . . . Hacks Repelled . | . . . . . . . . . . . . . . . . . . . Allies | -11 -10 -10 -9 -9 -9 -8 -8 -8 -8 -8 -7 -7 -7 -7 -6 -6 -5 -5 -------- Run | Jun Mat Min Mat Min Exi Min Mat Gar Mat Gar Fac Was Fac Gar Fac Gar Fac Gar Total Allies 68 | . . 1 . . . . . 6 . . . 20 . 17 6 18 . . Largest Group 19 | . . 1 . . . . . 6 6 . . 19 15 15 12 8 4 . Highest-Rated Group 465 | . . 31 . . . . . 45 45 . . 465 365 428 392 439 80 . Highest-Rated Ally 148 | . . 31 . . . . . 10 10 . . 35 31 80 80 148 20 . Total Orders 19 | . . . . . . . . . . . . . . 4 2 12 1 . STAY 11 | . . . . . . . . . . . . . . 2 1 7 1 . FOLLOW 8 | . . . . . . . . . . . . . . 2 1 5 . . Ally Attacks 398 | . . . . . . . . 3 24 . . 92 62 41 46 116 14 . Total Damage 8919 | . . . . . . . . 16 266 . . 2150 1036 634 766 3725 326 . Kills 61 | . . . . . . . . . 6 . . 6 7 6 6 27 3 . Allies Corrupted 1 | . . . . . . . . . . . . . 1 . . . . . Allies Melted . | . . . . . . . . . . . . . . . . . . . Intel | -11 -10 -10 -9 -9 -9 -8 -8 -8 -8 -8 -7 -7 -7 -7 -6 -6 -5 -5 ------- Run | Jun Mat Min Mat Min Exi Min Mat Gar Mat Gar Fac Was Fac Gar Fac Gar Fac Gar Robot Analysis Total 4 | . 1 . 1 . . . . . 2 . . . . . . . . . Derelict Logs Recovered 1 | . . 1 . . . . . . . . . . . . . . . . Drone Launches . | . . . . . . . . . . . . . . . . . . . Drone Recoveries . | . . . . . . . . . . . . . . . . . . . Exploration | -11 -10 -10 -9 -9 -9 -8 -8 -8 -8 -8 -7 -7 -7 -7 -6 -6 -5 -5 ------------- Run | Jun Mat Min Mat Min Exi Min Mat Gar Mat Gar Fac Was Fac Gar Fac Gar Fac Gar Turns Passed 17827 | 90 1629 1666 835 645 584 1743 385 427 1618 1580 61 1001 343 2162 306 1794 901 57 Spaces Moved 8582 | 51 811 726 431 388 366 728 220 240 631 637 26 430 137 980 137 923 636 84 Core 361 | 3 . . . . . . . . . . . 105 . . . . 169 84 Treads 7993 | 48 811 726 267 388 366 728 220 240 631 637 26 288 137 980 137 923 440 . Legs 10 | . . . . . . . . . . . . 10 . . . . . . Wheels 164 | . . . 164 . . . . . . . . . . . . . . . Hover 54 | . . . . . . . . . . . . 27 . . . . 27 . Flight . | . . . . . . . . . . . . . . . . . . . Fastest Speed 40 | 50 160 160 105 145 145 225 145 145 145 153 233 50 240 160 160 160 40 50 Average Speed 176 | 153 163 179 142 145 158 225 145 145 217 218 233 184 240 192 160 160 126 57 Slowest Speed 350 | 160 240 240 240 145 225 225 145 145 238 237 233 350 240 240 160 160 240 100 Overloaded Moves . | . . . . . . . . . . . . . . . . . . . Propulsion Burnouts . | . . . . . . . . . . . . . . . . . . . Robots Hopped . | . . . . . . . . . . . . . . . . . . . Cave-ins Triggered . | . . . . . . . . . . . . . . . . . . . Exploration Rate (%) 52 | 4 96 98 40 90 70 94 26 36 69 64 1 95 6 77 6 77 27 21 Regions Visited 18 Branch Regions 4 Pre-discovered Areas 1 | . . . . . 1 . . . . . . . . . . . . . Known Exits Taken 6 | . . 1 . . . . 1 . 1 . . . 1 . 1 . 1 . Unknown Exits Taken 6 | 1 1 . 1 1 1 1 . . . . . . . . . . . . Scrap Searched 6 | . . 3 . 2 . 1 . . . . . . . . . . . . Spaces Dug 15 | . . . . . . . . . 1 7 . . . . . 4 3 . Terrain Destroyed 67 | . 28 . . . . . . . 3 19 . . . 4 6 4 3 . Melee 15 | . . . . . . . . . 1 7 . . . . . 4 3 . Projectile 10 | . . . . . . . . . 2 2 . . . . 6 . . . AOE 42 | . 28 . . . . . . . . 10 . . . 4 . . . . Terrain Rammed . | . . . . . . . . . . . . . . . . . . . Walls Destroyed . | . . . . . . . . . . . . . . . . . . . Machines Disabled . | . . . . . . . . . . . . . . . . . . . Actions | -11 -10 -10 -9 -9 -9 -8 -8 -8 -8 -8 -7 -7 -7 -7 -6 -6 -5 -5 --------- Run | Jun Mat Min Mat Min Exi Min Mat Gar Mat Gar Fac Was Fac Gar Fac Gar Fac Gar Total 10282 | 60 985 1007 559 423 370 776 272 306 772 742 28 569 144 1180 192 1110 695 92 Wait 670 | . 77 217 17 2 . 4 34 11 57 26 . 54 . 78 12 61 13 7 Move 8570 | 50 810 725 430 387 365 727 220 239 631 636 26 429 137 979 137 922 636 84 Hop . | . . . . . . . . . . . . . . . . . . . Pick Up 110 | 4 10 7 23 . 1 7 4 2 3 1 . 20 2 11 . 9 6 . Fast Attach 61 | 6 7 . 4 3 . . 1 1 10 . . 10 1 6 2 5 4 1 Attach 66 | . 5 2 14 . 1 4 2 . 2 4 2 6 . 7 2 6 9 . Detach 8 | . . . 1 . . . . . . 2 . 2 . 2 1 . . . Swap 51 | . 1 4 1 . 1 . 1 3 4 9 . . . 12 1 14 . . Drop 70 | . 1 1 15 2 2 . 3 1 13 . . 13 1 12 2 3 1 . Fire 462 | . 67 17 53 25 . 31 7 4 38 28 . 35 3 43 35 59 17 . Melee 123 | . . 33 . . . . . 4 12 19 . . . 19 . 27 9 . Ram . | . . . . . . . . . . . . . . . . . . . Kick . | . . . . . . . . . . . . . . . . . . . Crush 18 | . 7 1 1 4 . 3 . . 2 . . . . . . . . . Escape Stasis 23 | . . . . . . . . . . 17 . . . 6 . . . . Rewire 50 | . . . . . . . . 41 . . . . . 5 . 4 . . Trap . | . . . . . . . . . . . . . . . . . . . Miscellaneous . | . . . . . . . . . . . . . . . . . . . Route ------- -11/Junkyard -10/Materials (discovered 4 exits: *Mat x3 / [*Min]) -10/Mines (discovered 2 exits: *Mat x2) -9/Materials (discovered 2 exits: *Mat / [*Min]) -9/Mines (discovered 3 exits: *Mat / *Exi / [*Zio]) -9/Exiles -8/Mines (discovered 2 exits: *Mat x2) -8/Materials -8/Garrison -8/Materials (discovered 2 exits: [*Fac] / Gar) -8/Garrison (discovered 2 exits: [*Fac x2]) -7/Factory -7/Waste -7/Factory -7/Garrison (discovered 4 exits: *Fac x3 / [*Fac]) -6/Factory (discovered 2 exits: *Fac / Gar) -6/Garrison (discovered 3 exits: *Fac x3) -5/Factory (discovered 2 exits: [*Fac] / Gar) -5/Garrison History --------- Turn | Location | Event 66 | -11/Junkyard | Discovered new exit (range 14) 91 | -11/Junkyard | Entered Materials 152 | -10/Materials | Discovered new exit (range 15) 309 | -10/Materials | Build established: Mutant 421 | -10/Materials | Discovered new exit (range 15) 724 | -10/Materials | Discovered new exit (range 7) 1100 | -10/Materials | Central database locked down 1111 | -10/Materials | Discovered new exit (range 5) 1252 | -10/Materials | Repaired Lgt. Treads 1278 | -10/Materials | Repaired Lgt. Treads 1720 | -10/Materials | Entered Mines 1760 | -10/Mines | Identified exit to Materials 2226 | -10/Mines | A weapon hastily lodged in a ceiling crevice suddenly fell to the ground 2462 | -10/Mines | Excavation squad dispatched 2462 | -10/Mines | A large section of the Mines collapsed 2680 | -10/Mines | Core integrity fell below 50% 2817 | -10/Mines | Received a Mining Laser from a helpful Derelict 2951 | -10/Mines | Core integrity fell below 20% 3151 | -10/Mines | Discovered exit to Materials (range 8) 3386 | -10/Mines | Entered Materials 3386 | -9/Materials | Evolved 2 slots: Utility x1, Weapon x1 3588 | -9/Materials | Discovered new exit (range 11) 3591 | -9/Materials | Lost 3 parts (1n1u1w) 3686 | -9/Materials | Build established: Tank 3885 | -9/Materials | Discovered new exit (range 16) 4221 | -9/Materials | Entered Mines 4274 | -9/Mines | Discovered new exit (range 12) 4342 | -9/Mines | Build established: Mutant 4412 | -9/Mines | Found a hidden stash of uninstalled traps 4523 | -9/Mines | A Derelict revealed a hidden shortcut to a safe place 4859 | -9/Mines | Deemed a non-threat by the Exiles lab entrance 4859 | -9/Mines | Discovered new exit (range 6) 4866 | -9/Mines | Entered Exiles 4901 | -9/Exiles | Met 8R-AWN 4923 | -9/Exiles | Met EX-HEX 4984 | -9/Exiles | Met EX-DEC 4990 | -9/Exiles | Learned location of Zion (-7) 5070 | -9/Exiles | Build established: Tank 5083 | -9/Exiles | Met EX-BIN 5103 | -9/Exiles | Aligned with FarCom system 5104 | -9/Exiles | Given EX-Vault access code 5138 | -9/Exiles | Opened EX-Vault 5148 | -9/Exiles | Found PSU Rigger 5179 | -9/Exiles | Warned to stay clear of 0b10 Research branches 5432 | -9/Exiles | Discovered new exit (range 10) 5450 | -9/Exiles | Left Exiles lab with PSU Rigger 5450 | -9/Exiles | Entered Mines 5755 | -8/Mines | Build established: Skirmisher 5787 | -8/Mines | Discovered new exit (range 11) 5902 | -8/Mines | Discovered new exit (range 8) 6270 | -8/Mines | Core integrity fell below 50% 6343 | -8/Mines | Lost 3 parts (1u2w) 7193 | -8/Mines | Entered Materials 7193 | -8/Materials | Evolved 2 slots: Propulsion x1, Utility x1 7502 | -8/Materials | Build established: Scavenger-Skirmisher 7578 | -8/Materials | Identified exit to Garrison 7578 | -8/Materials | Entered Garrison 7592 | -8/Garrison | Triggered checkpoint 7712 | -8/Garrison | Installed Relay Interface Framework 7922 | -8/Garrison | Triggered checkpoint 7973 | -8/Garrison | Discovered new exit (range 13) 8005 | -8/Garrison | Entered Materials 8005 | -8/Materials | Accompanied by 6 allies 8729 | -8/Materials | Build established: Scavenger-Tank 9348 | -8/Materials | Discovered new exit (range 4) 9623 | -8/Materials | Identified exit to Garrison 9623 | -8/Materials | Entered Garrison 9825 | -8/Garrison | Triggered checkpoint 9973 | -8/Garrison | Build established: Mutant 9998 | -8/Garrison | Triggered checkpoint 10183 | -8/Garrison | Discovered new exit (range 10) 10429 | -8/Garrison | Build established: Skirmisher 10478 | -8/Garrison | Triggered checkpoint 10700 | -8/Garrison | Expanded RIF knowledge: Hotswap 10794 | -8/Garrison | Discovered new exit (range 10) 10857 | -8/Garrison | Build established: Mutant 10956 | -8/Garrison | Expanded RIF knowledge: Watcher Feeds 11122 | -8/Garrison | Triggered checkpoint 11193 | -8/Garrison | Build established: Scavenger-Skirmisher 11203 | -8/Garrison | Entered Factory 11203 | -7/Factory | Evolved 2 slots: Utility x2 11264 | -7/Factory | Sucked down chute 11264 | -7/Factory | Entered Waste 11265 | -7/Waste | Met a frightened Derelict 11281 | -7/Waste | Spotted C-40 Crusher 11309 | -7/Waste | Crushed by Compactor (1 part destroyed, 1 dropped) 11311 | -7/Waste | Destroyed C-40 Crusher 11322 | -7/Waste | Found Damper Plating 11345 | -7/Waste | Spotted C-40 Crusher 11361 | -7/Waste | Crushed by Compactor (1 part destroyed, 1 dropped) 11364 | -7/Waste | Crushed by Compactor (1 part destroyed, 1 dropped) 11367 | -7/Waste | Crushed by Compactor (1 part destroyed, 2 dropped) 11370 | -7/Waste | Crushed by Compactor (1 part destroyed, 2 dropped) 11373 | -7/Waste | Crushed by Compactor (1 part destroyed, 1 dropped) 11375 | -7/Waste | Spotted C-40 Crusher 11401 | -7/Waste | Spotted C-40 Crusher 11404 | -7/Waste | Lost 5 parts (2n1u2w) 11412 | -7/Waste | Warlord forces began an assault 11419 | -7/Waste | Allies destroyed C-40 Crusher 11420 | -7/Waste | Allies destroyed C-40 Crusher 11423 | -7/Waste | Allies destroyed C-40 Crusher 11500 | -7/Waste | Allies destroyed C-40 Crusher 11658 | -7/Waste | Spotted C-40 Crusher 11669 | -7/Waste | Allies destroyed C-40 Crusher 11678 | -7/Waste | Found Damper Plating 11699 | -7/Waste | Build established: Mutant 12159 | -7/Waste | Discovered new exit (range 16) 12244 | -7/Waste | Build established: Skirmisher 12265 | -7/Waste | Entered Factory 12265 | -7/Factory | Accompanied by 15 allies 12451 | -7/Factory | P-60 Hacker assimilated allied MK-SKO(g) 12542 | -7/Factory | Garrison activated, responded to threat 12608 | -7/Factory | Identified exit to Garrison 12608 | -7/Factory | Entered Garrison 12949 | -7/Garrison | Triggered checkpoint 12968 | -7/Garrison | Build established: Scavenger-Mutant 13319 | -7/Garrison | Triggered checkpoint 13319 | -7/Garrison | Triggered checkpoint 13372 | -7/Garrison | Destroyed 9 combat bots 13555 | -7/Garrison | Discovered new exit (range 14) 13568 | -7/Garrison | Triggered checkpoint 13588 | -7/Garrison | Discovered new exit (range 5) 13930 | -7/Garrison | Expanded RIF knowledge: Command Fork 13952 | -7/Garrison | Garrison Relay disabled 13972 | -7/Garrison | Triggered checkpoint 14235 | -7/Garrison | Build established: Bothacker-Mutant 14339 | -7/Garrison | Discovered new exit (range 10) 14376 | -7/Garrison | Triggered checkpoint 14397 | -7/Garrison | Garrison Relay disabled 14520 | -7/Garrison | Triggered checkpoint 14570 | -7/Garrison | Found embedded Infiltrators 14576 | -7/Garrison | Discovered new exit (range 12) 14632 | -7/Garrison | Triggered checkpoint 14709 | -7/Garrison | Build established: Botlord-Mutant 14770 | -7/Garrison | Entered Factory 14770 | -6/Factory | Accompanied by 12 allies 14770 | -6/Factory | Evolved 2 slots: Propulsion x1, Utility x1 14941 | -6/Factory | Discovered new exit (range 16) 15024 | -6/Factory | Garrison activated, responded to threat 15076 | -6/Factory | Identified exit to Garrison 15076 | -6/Factory | Entered Garrison 15076 | -6/Garrison | Accompanied by 6 allies 15136 | -6/Garrison | Spotted B-75 Beast 15138 | -6/Garrison | Rewired B-86 Titan 15141 | -6/Garrison | Rewired B-90 Cyclops 15158 | -6/Garrison | Allies destroyed B-75 Beast 15310 | -6/Garrison | Triggered checkpoint 15396 | -6/Garrison | Triggered checkpoint 15412 | -6/Garrison | Triggered checkpoint 15801 | -6/Garrison | Heavy support dispatched to Factory 15829 | -6/Garrison | Discovered new exit (range 10) 15855 | -6/Garrison | Heavy support dispatched to Factory 15902 | -6/Garrison | Triggered checkpoint 16024 | -6/Garrison | Triggered checkpoint 16096 | -6/Garrison | Garrison Relay disabled 16275 | -6/Garrison | Heavy support dispatched to Factory 16291 | -6/Garrison | Discovered new exit (range 8) 16319 | -6/Garrison | Rescued a captive Derelict 16352 | -6/Garrison | Triggered checkpoint 16557 | -6/Garrison | Discovered new exit (range 13) 16608 | -6/Garrison | Triggered checkpoint 16623 | -6/Garrison | Lost 3 parts (1n2w) 16625 | -6/Garrison | Build established: Bothacker-Mutant 16680 | -6/Garrison | Lost 3 parts (1p1n1w) 16689 | -6/Garrison | Expanded RIF knowledge: Structural Interface 16803 | -6/Garrison | Heavy support dispatched to Factory 16870 | -6/Garrison | Entered Factory 16870 | -5/Factory | Accompanied by 4 allies 16870 | -5/Factory | Evolved 2 slots: Utility x1, Weapon x1 16976 | -5/Factory | Build established: Botlord-Mutant 17545 | -5/Factory | Lost 6 parts (1n2u3w) 17671 | -5/Factory | Released all parts (10) 17693 | -5/Factory | Core integrity fell below 50% 17701 | -5/Factory | Lost 8 parts (1p3n3u1w) 17753 | -5/Factory | Discovered new exit (range 15) 17771 | -5/Factory | Identified exit to Garrison 17771 | -5/Factory | Entered Garrison 17821 | -5/Garrison | Core integrity fell below 20% 17828 | -5/Garrison | Triggered checkpoint 17828 | -5/Garrison | Self-destructed Last Messages --------------- 17771_ EXIT=UNLOCKED: GARRISON >>Force(Eject) EJECTED[Relay Coupler [Demolisher]] EJECTED[Relay Coupler [Hunter]] EJECTED[Relay Coupler [Swarmer]] 17771_ ALERT: Suspicious activity at Garrison Access F003. Dispatching Investigation squad. LOCATION=GARRISON GOAL=ESCAPE 17771_ Receiving FarCom transmissions... 17772_ RIF reveals location of phase wall. 17774_ System corrupted: Matter fused (-6). 17775_ RIF reveals location of phase wall. 17807_ Triggered Alarm Trap. 17807_ An alarm sounds. 17808_ Acquired Unknown Device. 17808_ Identified Imp. Kinecellerator. 17823_ Penetrated by Slug. 17828_ Beams of light sweep through the air. An alarm sounds. 17828_ RIF reveals location of phase wall. Map ----- +----------------------------------------------------+ | ?????????????????????????????????????????????????? | | ?????????????????????????????????????????????????? | | ?????????????????????????????????????????????????? | | ?????????????????????????????????????????????????? | | ?????????????????######??????????????????????????? | | ?????????????????# #??????????????????????????? | | ?????????????????# #??????????????????????????? | | ?????????????????# #??????????????????????????? | | ?????????????????# ###??????????????????????????? | | ?????????????????# #????????????????????????????? | | ?????????????????# #????????????????????????????? | | ?????????????##### #????????????????????????????? | | ?????????????# + #????????????????????????????? | | ?????????????# ### #????????????????????????????? | | ?????????????# #?# #????????????????????????????? | | ?????????????# #?# #????????????????????????????? | | ??????########+### #######??????????????????????? | | ??????# + +??????????????????????? | | ??????# #### #??????????????????????? | | ??????# #####+##### #??? #??????????????????????? | | ??????# #???# #???# #?##+##?????????????????????? | | ??????# #???# #???# #?# #?????????????????????? | | ??????# #???# #???# #?? ??????????????????????? | | ??????# ##### #???# YY? ??????????????????????? | | ??????# + #???#+#??#Y#??????????????????????? | | ??????# #######??? #??#@#??????????????????????? | | ??????# #?????????# #??# #??????????????????????? | | ??????# #?????????# #??# #??????????????????????? | | #""""## ##????????# #??# #??????????????????????? | | ########## ####Y#??????????????????????? | | + p + ######?????????????????? | | #### ########## #[[[[#?????????????????? | | # ## #??# #????????# #?????????????????? | | # ?# #??# #????????### !!!#?????????????????? | | ? "g? #??????????######?????????????????? | | "g?###?????????????????????????????????? | | "g?????????????????????????????????????? | | "??????????????????????????????????????? | | # ## #??????????????????????????????????????? | | # ?# #??????????????????????????????????????? | | ?? ??????????????????????????????????????? | | ?? ???????????YY?????????????????????????? | | ? ??? #??????????????????????????????????????? | | ??????# #???????????????????????????????????????? | | ??????? ????????????????????????????????????????? | | ?????????????????????????????????????????????????? | | ?????????????????????????????????????????????????? | | ?????????????????????????????????????????????????? | | ?????????????????????????????????????????????????? | | ?????????????????????????????????????????????????? | +----------------------------------------------------+ Best States ------------- Heat Dissipation 80 Energy Generation 21 Energy Capacity 800 Matter Stores 300 Matter Capacity 300 Sight Range 16 Terrain Scan Density 10 Armor Coverage 1600 Resistance: TH 10 Resistance: EM 90 Evasion (%) 57 Targeting Accuracy 8 Recoil Reduction 4 Kinecelleration 40 Offensive Hacking 14 Relay Coupler Types 6 Relay Coupler Value 76 Item Schematics ----------------- None Robot Schematics ------------------ None Fabricated ------------ Nothing Alien Tech Used ----------------- None Achievements -------------- None Challenges ------------ None Game ------ Seed SingularitySpacefoldStorm Manual? 0 Play Time 01:17:44 Cumulative 284.1 hours Start 2023.03.05 @ 01:47:16 End 2023.03.05 @ 16:00:59 Sessions 3 Manual Loads 0 Difficulty Rogue Special Mode None Game No. 419 Rogue 397 Adventurer 4 Explorer 18 Win Type - Total 11 Types 9/0/0/2/0/0/0/0/0 Lore% 70 Gallery% 90 Achievement% 73 Wizard Run 0 Options --------- ASCII 0 Keyboard 1 Movement Numpad Keybinds 0 Fullscreen 2 Font 18/SmallcapsGlow Map View 76x50 Tactical HUD 1 Map Filters NONE Filters NONE Steam 1 RUN: ab566e86-08d4-4a2a-b80a-c54976f79ce9